fUSD/lending_fUSD_20260106
["ID","MTS","AMOUNT","RATE_DAILY","PERIOD"]
[400516452,1767690645887,-153.782534,0.00033,31]
[400516453,1767690645897,-151.0,0.00033,31]
[400516454,1767690645908,-151.0,0.00033,31]
[400516455,1767690645917,-198.727421,0.00033,31]
[400516456,1767690645929,-198.727421,0.00033,31]
[400516457,1767690645940,-198.727421,0.00033,31]
[400516458,1767690645951,-198.727421,0.00033,31]
[400516459,1767690645960,-150.0,0.00033,2]
[400516460,1767690645971,-151.0,0.00033,31]
[400516461,1767690645981,-151.0,0.00033,31]
[400516462,1767690645990,-151.0,0.00033,31]
[400516463,1767690646000,-151.0,0.00033,31]
[400516464,1767690646010,-151.0,0.00033,31]
[400516465,1767690646019,-151.0,0.00033,31]
[400516466,1767690646029,-163.614104,0.00033,31]
[400516467,1767690646039,-151.0,0.00033,31]
[400516468,1767690646049,-151.0,0.00033,31]
[400516469,1767690646060,-151.0,0.00033,31]
[400516470,1767690646070,-151.0,0.00033,31]
[400516471,1767690646079,-151.0,0.00033,31]
[400516472,1767690646088,-151.0,0.00033,31]
[400516473,1767690646098,-265.409279,0.00033,31]
[400516474,1767690646107,-265.409279,0.00033,31]
[400516475,1767690646116,-265.409279,0.00033,31]
[400516476,1767690646128,-265.409279,0.00033,31]
[400516477,1767690646139,-265.409279,0.00033,31]
[400516478,1767690646149,-265.409279,0.00033,31]
[400516479,1767690646158,-151.0,0.00033,31]
[400516480,1767690646167,-151.0,0.00033,31]
[400516481,1767690646175,-265.409279,0.00033,31]
[400516482,1767690646185,-265.409279,0.00033,31]
[400516483,1767690646194,-151.0,0.00033,31]
[400516484,1767690646205,-151.0,0.00033,31]
[400516485,1767690646214,-163.515507,0.00033,31]
[400516486,1767690646224,-151.0,0.00033,31]
[400516487,1767690646233,-151.0,0.00033,31]
[400516488,1767690646243,-151.0,0.00033,31]
[400516489,1767690646252,-151.0,0.00033,31]
[400516490,1767690646262,-151.0,0.00033,31]
[400516491,1767690646271,-151.0,0.00033,31]
[400516492,1767690646279,-151.0,0.00033,31]
[400516493,1767690646289,-151.0,0.00033,31]
[400516494,1767690646299,-151.0,0.00033,31]
[400516495,1767690646308,-151.0,0.00033,31]
[400516496,1767690646317,-7034.54,0.00033,2]
[400516497,1767690646327,-3968.365092,0.00033,31]
[400516498,1767690646338,-151.0,0.00033,31]
[400516499,1767690646348,-151.0,0.00033,31]
[400516500,1767690646358,-3968.365092,0.00033,31]
[400516501,1767690646369,-3968.365092,0.00033,31]
[400516502,1767690646380,-151.0,0.00033,31]
[400516503,1767690646391,-151.0,0.00033,31]
[400516504,1767690646402,-151.0,0.00033,31]
[400516505,1767690646412,-3968.365092,0.00033,31]
[400516506,1767690646423,-151.0,0.00033,31]
[400516507,1767690646434,-333.677375,0.00033,31]
[400516508,1767690646444,-333.677375,0.00033,31]
[400516509,1767690646454,-333.677375,0.00033,31]
[400516510,1767690646464,-333.677375,0.00033,31]
[400516511,1767690646474,-2602.83972,0.0003305,38]
[400516512,1767690646485,-704.99,0.00033098,2]
[400516513,1767690646494,-500.0,0.00033098,5]
[400516514,1767690646504,-300.0,0.00033098,2]
[400516515,1767690646515,-12000.0,0.00033099,120]
[400516516,1767690646524,-2602.83972,0.0003315,39]
[400516517,1767690646534,-398.42,0.00033165,2]
[400516518,1767690646543,-200.0,0.00033229,2]
[400516519,1767690646552,-200.0,0.00033229,2]
[400516520,1767690646561,-2602.83972,0.0003325,40]
[400516521,1767690646571,-505.0,0.00033333,6]
[400516522,1767690646582,-2602.83973,0.0003335,42]
[400516523,1767690646593,-225.42,0.00033362,2]
[400516524,1767690646603,-2602.83972,0.0003345,43]
[400516525,1767690646613,-1207.04848424,0.000335,2]
[400516526,1767690646622,-1000.0,0.0003354,2]
[400516527,1767690646631,-2602.83972,0.0003355,44]
[400516528,1767690646643,-200.0,0.00033561,2]
[400516529,1767690646652,-200.0,0.00033561,2]
[400516530,1767690646661,-600.0,0.00033802,14]
[400516531,1767690646670,-800.0,0.00033802,14]
[400516532,1767690646679,-1826.34,0.000339,14]
[400516533,1767690646689,-7034.54,0.000339,2]
[400516534,1767690646698,-325.94982562,0.00034,2]
[400516535,1767690646708,-1909.13716878,0.00034,2]
[400516536,1767690646717,-500.0,0.00034,120]
[400516537,1767690646726,-1181.43,0.00034,14]
[400516538,1767690646736,-160.2,0.000341,30]
[400516539,1767690646746,-1064.43,0.000341,14]
[400516540,1767690646756,-8892.4829786,0.00034166,2]
[400516541,1767690646766,-1725.45723869,0.0003449,2]
[400516542,1767690646777,-600.0,0.00034624,14]
[400516543,1767690646786,-800.0,0.00034624,14]
[400516544,1767690646795,-500.0,0.00034624,14]
[400516545,1767690646805,-151.69,0.00034633,2]
[400516546,1767690646815,-605.57,0.00034633,2]
[400516547,1767690646824,-352.41312839,0.0003466,2]
[400516548,1767690646834,-2000.0,0.000347,2]
[400516549,1767690647008,-225.42,0.00034732,2]
[400516550,1767690647018,-200.0,0.00034774,2]
[400516551,1767690647027,-200.0,0.00034774,2]
[400516552,1767690647037,-200.0,0.00034774,2]
[400516553,1767690647046,-200.0,0.00034774,2]
[400516554,1767690647055,-200.0,0.00034774,2]
[400516555,1767690647064,-200.0,0.00034774,2]
[400516556,1767690647073,-200.0,0.00034774,2]
[400516557,1767690647082,-200.0,0.00034774,2]
[400516558,1767690647091,-200.0,0.00034774,2]
[400516559,1767690647100,-200.0,0.00034774,2]
[400516560,1767690647109,-200.0,0.00034774,2]
[400516561,1767690647118,-200.0,0.00034774,2]
[400516562,1767690647129,-200.0,0.00034774,2]
[400516563,1767690647138,-200.0,0.00034774,2]
[400516564,1767690647147,-200.0,0.00034774,2]
[400516565,1767690647156,-200.0,0.00034774,2]
[400516566,1767690647167,-200.0,0.00034774,2]
[400516567,1767690647176,-200.0,0.00034774,2]
[400516568,1767690647186,-200.0,0.00034774,2]
[400516569,1767690647194,-200.0,0.00034774,2]
[400516570,1767690647205,-200.0,0.00034774,2]
[400516571,1767690647216,-200.0,0.00034774,2]
[400516572,1767690647225,-200.0,0.00034774,2]
[400516573,1767690647235,-200.0,0.00034774,2]
[400516574,1767690647244,-200.0,0.00034774,2]
[400516575,1767690647253,-200.0,0.00034774,2]
[400516576,1767690647262,-200.0,0.00034774,2]
[400516577,1767690647271,-206.0,0.00034774,2]
[400516578,1767690647280,-200.0,0.00034774,2]
[400516579,1767690647289,-200.0,0.00034774,2]
[400516580,1767690647298,-200.0,0.00034774,2]
[400516581,1767690647307,-200.0,0.00034774,2]
[400516582,1767690647317,-200.0,0.00034774,2]
[400516583,1767690647326,-200.0,0.00034774,2]
[400516584,1767690647336,-200.0,0.00034774,2]
[400516585,1767690647345,-200.0,0.00034774,2]
[400516586,1767690647355,-164.0,0.00034774,2]
[400516587,1767690647364,-6505.11467841,0.00034852,60]
[400516588,1767690647373,-354.5798613,0.0003488,120]
[400516589,1767690647382,-1181.43,0.000349,14]
[400516590,1767690647391,-1826.34,0.000349,14]
[400516591,1767690647402,-7034.54,0.000349,2]
[400516592,1767690647411,-561.45,0.00034964,2]
[400516593,1767690647420,-156.28262449,0.00035,30]
[400516594,1767690647429,-1911.05252314,0.00035,2]
[400516595,1767690647438,-150.0,0.00035,2]
[400516596,1767690647447,-1000.0,0.00035,12]
[400516597,1767690647457,-153.71,0.00035,5]
[400516598,1767690647466,-505.0,0.00035062,8]
[400516599,1767690647476,-1064.43,0.000352,14]
[400516600,1767690647485,-416.9074,0.0003522,30]
[400516601,1767690647495,-160.2,0.000353,30]
[400516602,1767690647508,-600.0,0.00035446,14]
[400516603,1767690647518,-800.0,0.00035446,14]
[400516604,1767690647527,-430.34,0.00035549,30]
[400516605,1767690647536,-1826.34,0.000356,14]
[400516606,1767690647545,-1076.95721268,0.00035609,2]
[400516607,1767690647554,-655.0,0.00035609,14]
[400516608,1767690647563,-300.0,0.00035609,2]
[400516609,1767690647573,-704.99,0.00035609,2]
[400516610,1767690647582,-500.0,0.00035609,5]
[400516611,1767690647591,-300.0,0.00035609,2]
[400516612,1767690647601,-4928.39,0.00035609,14]
[400516613,1767690647610,-500.0,0.00035609,2]
[400516614,1767690647621,-30715.19293251,0.0003561,2]
[400516615,1767690647962,-151.0,0.0003299,31]
[400516616,1767690647972,-151.0,0.00032999,2]
[400516617,1767690647981,-151.0,0.00033,31]
[400516618,1767690647990,-65.80238673,0.0003561,2]
[400516619,1767690907954,334.59,0.00013699,2]
[400516620,1767691005175,-50000.0,0.00043191,30]
[400516621,1767691005207,-50000.0,0.00043191,31]
[400516622,1767691005237,-13138.28,0.00043191,30]
[400516623,1767691005266,-368.0,0.00043191,120]
[400516624,1767691005295,-144606.34,0.00043191,120]
[400516625,1767691005322,-404642.88,0.00043191,45]
[400516626,1767691005349,-750000.0,0.00043191,60]
[400516627,1767691005376,-750000.0,0.00043191,45]
[400516628,1767691005404,-1097544.0,0.00043191,30]
[400516629,1767691005431,-1000.0,0.00043191,30]
[400516630,1767691005457,-105199.999999,0.00043191,30]
[400516631,1767691005485,-494.63491801,0.00043191,120]
[400516632,1767691005512,-82746.999998,0.00043191,30]
[400516633,1767691005540,-623060.54221284,0.00043191,30]
[400516634,1767691005568,-29329.30561883,0.00043191,30]
[400516635,1767691005595,-146198.74947567,0.00043191,30]
[400516636,1767691005623,-20430.29718662,0.00043191,30]
[400516637,1767691005650,-161305.76714374,0.00043191,30]
[400516638,1767691005676,-27855.35362711,0.00043191,30]
[400516639,1767691005703,-4340.54745309,0.00043191,30]
[400516640,1767691005730,-8915.48629899,0.00043191,30]
[400516641,1767691005757,-95357.83,0.00043191,60]
[400516642,1767691005786,-2000.0,0.00043191,30]
[400516643,1767691005814,-2901.21047706,0.00043191,30]
[400516644,1767691005842,-1599.5,0.00043191,120]
[400516645,1767691005868,-202354.3649604,0.00043191,30]
[400516646,1767691005893,-103593.5161801,0.00043191,30]
[400516647,1767691005919,-15665.88834439,0.00043191,120]
[400516648,1767691005944,-105350.50610615,0.00043191,120]
[400516649,1767691008707,-400514.32551742,0.00043191,120]
[400516650,1767691008736,-315.0,0.00043191,120]
[400516651,1767691008764,-2871.26406635,0.00043191,120]
[400516652,1767691008792,-5050.0,0.00043191,36]
[400516653,1767691008822,-82342.3087215,0.00043191,30]
[400516654,1767691008848,-3125625.522444,0.00043191,30]
[400516655,1767691008876,-10000.0,0.00043191,120]
[400516656,1767691008902,-10000.0,0.00043191,120]
[400516657,1767691008929,-2002.09470665,0.00043191,30]
[400516658,1767691008955,-237.96778487,0.00043191,120]
[400516659,1767691008984,-3791.23659911,0.00043191,120]
[400516660,1767691009010,-9999.99999901,0.00043191,30]
[400516661,1767691009039,-50000.0,0.00043191,33]
[400516662,1767691009067,-50000.0,0.00043191,34]
[400516663,1767691009096,-50000.0,0.00043191,35]
[400516664,1767691009125,-50000.0,0.00043191,36]
[400516665,1767691009155,-50000.0,0.00043191,37]
[400516666,1767691009183,-6061.23830037,0.00043191,120]
[400516667,1767691009213,-50000.0,0.00043191,38]
[400516668,1767691009245,-50000.0,0.00043191,39]
[400516669,1767691009275,-50000.0,0.00043191,40]
[400516670,1767691009305,-50000.0,0.00043191,32]
[400516671,1767691009334,-897.1599996,0.00043191,120]
[400516672,1767691009362,-344.7494957,0.00043191,30]
[400516673,1767691009391,-250.0,0.00043191,120]
[400516674,1767691009420,-5000.0,0.00043191,30]
[400516675,1767691009448,-160.39758932,0.00043191,120]
[400516676,1767691009476,-298499.2882,0.00043191,30]
[400516677,1767691009503,-234.07786172,0.00043191,120]
[400516678,1767691009531,-1080.32651846,0.00043191,120]
[400516679,1767691009557,-3528.76756238,0.00043191,30]
[400516680,1767691009583,-222.0,0.00043191,120]
[400516681,1767691009608,-187.3706045,0.00043191,30]
[400516682,1767691009633,-192.97796986,0.00043191,60]
[400516683,1767691009659,-235.0,0.00043191,120]
[400516684,1767691009685,-88551.81498977,0.00043191,60]
[400516685,1767691009712,-86058.0,0.00043191,30]
[400516686,1767691009738,-178.513009,0.00043191,75]
[400516687,1767691009763,-256.87,0.00043191,120]
[400516688,1767691009790,-1000.0,0.00043191,120]
[400516689,1767691009816,-1000.0,0.00043191,120]
[400516690,1767691009843,-1000.0,0.00043191,120]
[400516691,1767691009870,-1000.0,0.00043191,120]
[400516692,1767691009896,-1000.0,0.00043191,120]
[400516693,1767691009924,-1000.0,0.00043191,120]
[400516694,1767691009951,-1000.0,0.00043191,120]
[400516695,1767691009978,-1000.0,0.00043191,120]
[400516696,1767691010004,-1000.0,0.00043191,120]
[400516697,1767691010031,-1000.0,0.00043191,120]
[400516698,1767691010056,-1000.0,0.00043191,120]
[400516699,1767691010081,-1000.0,0.00043191,120]
[400516700,1767691010107,-1185.38,0.00043191,120]
[400516701,1767691010132,-173.0182188,0.00043191,120]
[400516702,1767691010158,-7283.82363608,0.00043191,120]
[400516703,1767691010182,-152.2647983,0.00043191,30]
[400516704,1767691010207,-910.10179749,0.00043191,60]
[400516705,1767691010232,-157.59902285,0.00043191,30]
[400516706,1767691010261,-186.0,0.00043191,30]
[400516707,1767691010287,-2012.74,0.00043191,40]
[400516708,1767691010311,-18900.0,0.00043191,30]
[400516709,1767691010340,-167.74425822,0.00043191,30]
[400516710,1767691010369,-1113.7771207,0.00043191,120]
[400516711,1767691010397,-9996.03069676,0.00043191,30]
[400516712,1767691010424,-4028.0,0.00043191,30]
[400516713,1767691010450,-5000.0,0.00043191,60]
[400516714,1767691010480,-330.44995042,0.00043191,120]
[400516715,1767691010508,-584.68925599,0.00043191,120]
[400516716,1767691010535,-12311.42,0.00043191,30]
[400516717,1767691010560,-165.62726061,0.00043191,30]
[400516718,1767691010586,-1048.0,0.00043191,120]
[400516719,1767691010612,-876.76453753,0.00043191,120]
[400516720,1767691010639,-927.8027554,0.00043191,120]
[400516721,1767691010667,-46104.34,0.00043191,120]
[400516722,1767691010694,-487.07699793,0.00043191,120]
[400516723,1767691010722,-5972.15981635,0.00043191,60]
[400516724,1767691010754,-151.0,0.00043191,65]
[400516725,1767691010781,-10034.99161297,0.00043191,120]
[400516726,1767691010808,-156.451791,0.00043191,65]
[400516727,1767691010836,-151.0,0.00043191,65]
[400516728,1767691010862,-151.0,0.00043191,65]
[400516729,1767691010891,-151.0,0.00043191,65]
[400516730,1767691010918,-151.0,0.00043191,65]
[400516731,1767691010945,-151.0,0.00043191,65]
[400516732,1767691010977,-151.0,0.00043191,65]
[400516733,1767691011003,-151.0,0.00043191,65]
[400516734,1767691011216,-151.0,0.00043191,65]
[400516735,1767691011247,-168.166784,0.00043191,65]
[400516736,1767691011276,-151.0,0.00043191,65]
[400516737,1767691011305,-151.0,0.00043191,65]
[400516738,1767691011335,-151.0,0.00043191,65]
[400516739,1767691011367,-151.0,0.00043191,65]
[400516740,1767691011394,-151.0,0.00043191,65]
[400516741,1767691011421,-151.0,0.00043191,65]
[400516742,1767691011450,-151.0,0.00043191,65]
[400516743,1767691011477,-151.0,0.00043191,65]
[400516744,1767691011506,-151.0,0.00043191,65]
[400516745,1767691011535,-185.078784,0.00043191,65]
[400516746,1767691011562,-150.0,0.00043191,30]
[400516747,1767691011589,-258.112976,0.00043191,65]
[400516748,1767691011619,-175.67677,0.00043191,65]
[400516749,1767691011647,-151.0,0.00043191,65]
[400516750,1767691011678,-151.0,0.00043191,65]
[400516751,1767691011706,-151.0,0.00043191,65]
[400516752,1767691011736,-151.0,0.00043191,65]
[400516753,1767691011763,-151.0,0.00043191,65]
[400516754,1767691011789,-151.0,0.00043191,65]
[400516755,1767691011816,-151.0,0.00043191,65]
[400516756,1767691011843,-151.0,0.00043191,65]
[400516757,1767691011869,-151.0,0.00043191,65]
[400516758,1767691011896,-151.0,0.00043191,65]
[400516759,1767691011923,-151.0,0.00043191,65]
[400516760,1767691011949,-151.0,0.00043191,65]
[400516761,1767691011978,-151.0,0.00043191,65]
[400516762,1767691012005,-151.0,0.00043191,65]
[400516763,1767691012031,-151.0,0.00043191,65]
[400516764,1767691012058,-151.0,0.00043191,65]
[400516765,1767691012084,-151.0,0.00043191,65]
[400516766,1767691012112,-225.100297,0.00043191,65]
[400516767,1767691012138,-174.22026,0.00043191,65]
[400516768,1767691012167,-151.0,0.00043191,65]
[400516769,1767691012195,-151.0,0.00043191,65]
[400516770,1767691012222,-151.0,0.00043191,65]
[400516771,1767691012252,-285.484813,0.00043191,65]
[400516772,1767691012280,-338.855259,0.00043191,65]
[400516773,1767691012309,-338.855259,0.00043191,65]
[400516774,1767691012336,-338.855259,0.00043191,65]
[400516775,1767691012364,-338.855259,0.00043191,65]
[400516776,1767691012390,-338.855259,0.00043191,65]
[400516777,1767691012419,-338.855259,0.00043191,65]
[400516778,1767691012446,-338.855259,0.00043191,65]
[400516779,1767691012473,-338.855259,0.00043191,65]
[400516780,1767691012499,-338.855259,0.00043191,65]
[400516781,1767691012526,-338.855259,0.00043191,65]
[400516782,1767691012552,-338.855259,0.00043191,65]
[400516783,1767691012580,-338.855259,0.00043191,65]
[400516784,1767691012608,-180.60974,0.00043191,65]
[400516785,1767691012637,-338.855259,0.00043191,65]
[400516786,1767691012666,-338.855259,0.00043191,65]
[400516787,1767691012695,-338.855259,0.00043191,65]
[400516788,1767691012725,-338.855259,0.00043191,65]
[400516789,1767691012754,-338.855259,0.00043191,65]
[400516790,1767691012783,-338.855259,0.00043191,65]
[400516791,1767691012811,-338.855259,0.00043191,65]
[400516792,1767691012839,-338.85526,0.00043191,65]
[400516793,1767691012867,-225.204629,0.00043191,65]
[400516794,1767691012894,-250.988097,0.00043191,65]
[400516795,1767691012922,-151.0,0.00043191,65]
[400516796,1767691012950,-151.0,0.00043191,65]
[400516797,1767691012977,-151.0,0.00043191,65]
[400516798,1767691013004,-291.209469,0.00043191,65]
[400516799,1767691013032,-216.104066,0.00043191,65]
[400516800,1767691013060,-216.104066,0.00043191,65]
[400516801,1767691013089,-216.104066,0.00043191,65]
[400516802,1767691013118,-216.104066,0.00043191,65]
[400516803,1767691013146,-216.104066,0.00043191,65]
[400516804,1767691013173,-216.104066,0.00043191,65]
[400516805,1767691013202,-216.104066,0.00043191,65]
[400516806,1767691013230,-216.104066,0.00043191,65]
[400516807,1767691013266,-216.104066,0.00043191,65]
[400516808,1767691013295,-216.104066,0.00043191,65]
[400516809,1767691013322,-151.0,0.00043191,65]
[400516810,1767691013351,-216.104066,0.00043191,65]
[400516811,1767691013378,-200.180963,0.00043191,65]
[400516812,1767691013406,-216.104066,0.00043191,65]
[400516813,1767691013434,-216.104066,0.00043191,65]
[400516814,1767691013460,-216.104066,0.00043191,65]
[400516815,1767691013490,-216.104066,0.00043191,65]
[400516816,1767691013518,-216.104066,0.00043191,65]
[400516817,1767691013546,-216.104066,0.00043191,65]
[400516818,1767691013575,-216.104066,0.00043191,65]
[400516819,1767691013612,-216.104066,0.00043191,65]
[400516820,1767691013645,-151.0,0.00043191,65]
[400516821,1767691013674,-216.104074,0.00043191,65]
[400516822,1767691013702,-151.0,0.00043191,65]
[400516823,1767691013731,-151.0,0.00043191,65]
[400516824,1767691013760,-151.0,0.00043191,65]
[400516825,1767691013787,-151.0,0.00043191,65]
[400516826,1767691013816,-151.0,0.00043191,65]
[400516827,1767691013844,-151.0,0.00043191,65]
[400516828,1767691013872,-151.0,0.00043191,65]
[400516829,1767691014090,-151.0,0.00043191,65]
[400516830,1767691014123,-151.0,0.00043191,65]
[400516831,1767691014155,-151.0,0.00043191,65]
[400516832,1767691014184,-151.0,0.00043191,65]
[400516833,1767691014219,-151.0,0.00043191,65]
[400516834,1767691014254,-151.0,0.00043191,65]
[400516835,1767691014286,-151.0,0.00043191,65]
[400516836,1767691014319,-151.0,0.00043191,65]
[400516837,1767691014350,-234.965405,0.00043191,45]
[400516838,1767691014379,-177.099689,0.00043191,65]
[400516839,1767691014410,-177.099689,0.00043191,65]
[400516840,1767691014438,-177.099689,0.00043191,65]
[400516841,1767691014473,-177.099689,0.00043191,65]
[400516842,1767691014504,-177.099689,0.00043191,65]
[400516843,1767691014534,-177.099689,0.00043191,65]
[400516844,1767691014563,-177.099689,0.00043191,65]
[400516845,1767691014593,-177.099689,0.00043191,65]
[400516846,1767691014622,-177.099689,0.00043191,65]
[400516847,1767691014650,-177.099689,0.00043191,65]
[400516848,1767691014678,-177.099689,0.00043191,65]
[400516849,1767691014706,-177.099689,0.00043191,65]
[400516850,1767691014732,-177.099689,0.00043191,65]
[400516851,1767691014758,-177.099689,0.00043191,65]
[400516852,1767691014784,-177.099689,0.00043191,65]
[400516853,1767691014811,-177.099689,0.00043191,65]
[400516854,1767691014838,-177.099689,0.00043191,65]
[400516855,1767691014865,-177.099689,0.00043191,65]
[400516856,1767691014893,-177.099689,0.00043191,65]
[400516857,1767691014920,-177.099683,0.00043191,65]
[400516858,1767691014949,-582.77592939,0.00043191,120]
[400516859,1767691014978,-500.0,0.00043191,120]
[400516860,1767691016104,318.07075555,0.00043191,30]
[400516861,1767691456862,-282.0,0.00015798,2]
[400516862,1767691456884,-31.01121749,0.00015798,2]
[400516863,1767691505066,-268.11113654,0.00015356,2]
[400516864,1767691505088,-268.98878251,0.00015798,2]
[400516865,1767691505110,-193.0,0.00015798,2]
[400516866,1767691505132,-500.0,0.00015798,2]
[400516867,1767691505153,-431.1772499,0.00016284,2]
[400516868,1767691505601,300.0,0.00015577,2]
[400516869,1767691505705,38.72283105,0.00015807,2]
[400516870,1767691530826,250.77488988,0.0002,120]
[400516873,1767691615171,-261.27716895,0.00015807,2]
[400516874,1767691615193,-645.68241576,0.000162,5]
[400516896,1767691832491,-4354.32342511,0.000162,5]
[400516897,1767691832503,-286.0,0.00016214,2]
[400516898,1767691832514,-193.0,0.00016214,2]
[400516899,1767691832526,-151.0,0.00016576,2]
[400516900,1767691832540,-197.21778954,0.00016729,2]
[400516901,1767691832551,-195.0,0.00017388,2]
[400516902,1767691832568,-501.00861123,0.000178,2]
[400516903,1767691832579,-1200.0,0.00017819,2]
[400516904,1767691832590,-195.0,0.0001782,2]
[400516905,1767691832601,-177.48332716,0.0001782,2]
[400516906,1767691832615,-112.07835307,0.0001782,2]
[400516907,1767691832626,-193.0,0.0001782,2]
[400516908,1767691832638,-195.0,0.0001782,2]
[400516909,1767691832650,-90.12226896,0.0001782,2]
[400516910,1767691832664,-209.87773104,0.0001782,2]
[400516911,1767691832676,-300.0,0.00017998,2]
[400516912,1767691832687,-300.0,0.00017998,2]
[400516913,1767691832699,-529.44008708,0.00017998,2]
[400516914,1767691832771,-20.55991292,0.00017998,2]
[400516915,1767691832785,-500.0,0.00017999,2]
[400516916,1767691832796,-394.36056694,0.00017999,2]
[400516917,1767691832808,-190.9228884,0.00017999,2]
[400516918,1767691832819,-500.0,0.00017999,2]
[400516919,1767691832830,-253.21637211,0.00017999,2]
[400516920,1767691832841,-480.17597794,0.00017999,2]
[400516921,1767691832858,-19.82402206,0.00017999,2]
[400516922,1767691832869,-481.17922,0.00017999,2]
[400516923,1767691832887,-18.82078,0.00017999,2]
[400516924,1767691832899,-274.15622002,0.00017999,2]
[400516925,1767691832976,-225.84377998,0.00017999,2]
[400516926,1767691832988,-418.58881084,0.00017999,2]
[400516927,1767691833000,-500.0,0.00017999,2]
[400516928,1767691833012,-500.0,0.00017999,2]
[400516929,1767691833024,-500.0,0.00017999,2]
[400516930,1767691833036,-500.0,0.00017999,2]
[400516931,1767691833050,-500.0,0.00017999,2]
[400516932,1767691833062,-500.0,0.00017999,2]
[400516933,1767691833073,-500.0,0.00017999,2]
[400516934,1767691833087,-500.0,0.00017999,2]
[400516935,1767691833099,-500.0,0.00017999,2]
[400516936,1767691833112,-500.0,0.00017999,2]
[400516937,1767691833125,-500.0,0.00017999,2]
[400516938,1767691833137,-500.0,0.00017999,2]
[400516939,1767691833149,-500.0,0.00017999,2]
[400516940,1767691833160,-144.58109664,0.00017999,2]
[400516941,1767691833173,-355.41890336,0.00017999,2]
[400516942,1767691833184,-500.0,0.00017999,2]
[400516943,1767691833196,-232.68196231,0.00017999,2]
[400516944,1767691833210,-267.31803769,0.00017999,2]
[400516945,1767691833220,-422.60724351,0.00017999,2]
[400516947,1767691833233,-77.39275649,0.00017999,2]
[400516949,1767691833247,-498.35724351,0.00017999,2]
[400516951,1767691833261,-1.64275649,0.00017999,2]
[400516953,1767691833272,-500.0,0.00017999,2]
[400516955,1767691833284,-500.0,0.00017999,2]
[400516957,1767691833295,-500.0,0.00017999,2]
[400516959,1767691833306,-500.0,0.00017999,2]
[400516961,1767691833317,-30.11829274,0.00017999,2]
[400516964,1767691833345,-469.88170726,0.00017999,2]
[400516966,1767691833356,-418.26450502,0.00017999,2]
[400516970,1767691833378,-81.73549498,0.00017999,2]
[400516973,1767691833391,-500.0,0.00017999,2]
[400516976,1767691833404,-500.0,0.00017999,2]
[400516979,1767691833416,-500.0,0.00017999,2]
[400516982,1767691833428,-267.39941648,0.00017999,2]
[400517063,1767691838278,-151.0,0.0001658,2]
[400517064,1767691838289,-232.60058352,0.00017999,2]
[400517065,1767691838299,-150.0,0.00018,7]
[400517066,1767691838310,-555.45881601,0.00018,2]
[400517067,1767691838335,-349.43400439,0.00018,2]
[400517068,1767691838348,-373.38091558,0.00018,2]
[400517069,1767691838715,-1914.31743413,0.00018,2]
[400517070,1767691838727,-876.74564116,0.00018,2]
[400517071,1767691838776,-638.55537377,0.00018,2]
[400517072,1767691838790,-6769.46469655,0.00018,2]
[400517073,1767691838802,-576.34409358,0.00018,2]
[400517074,1767691838820,-83106.10845227,0.00018,2]
[400517075,1767691838832,-4071.55773437,0.00018,2]
[400517076,1767691838844,-400.0,0.00018,2]